bitfinex-derivatives/quotes_SOLF0:USTF0_20251006
["timestamp","ask_amount","ask_price","bid_price","bid_amount"]
[1759728188585,7.71,230.53,230.49,3.903]
[1759728188789,7.71,230.53,230.49,9.163]
[1759728188993,3.9022,230.55,230.49,9.163]
[1759728189193,7.71,230.54,230.49,9.163]
[1759728189693,3.9022,230.55,230.49,9.163]
[1759728190691,7.71,230.54,230.49,9.163]
[1759728190886,3.9022,230.55,230.49,9.163]
[1759728191093,7.71,230.54,230.49,9.163]
[1759728191297,3.9022,230.55,230.49,9.163]
[1759728191589,11.6124,230.54,230.49,5.26]
[1759728191892,7.71,230.55,230.46,3.9035]
[1759728192194,7.71,230.52,230.47,3.9033]
[1759728192394,11.6125,230.53,230.46,5.26]
[1759728193589,3.9025,230.53,230.48,3.9032]
[1759728194394,7.71,230.52,230.43,4.83071761]
[1759728195594,3.9031,230.5,230.44,3.9039]
[1759728196194,7.71,230.49,230.44,3.9039]
[1759728196689,3.9031,230.5,230.44,9.1639]
[1759728196894,7.71,230.49,230.44,9.1639]
[1759728197193,3.9031,230.5,230.44,9.1639]
[1759728197389,7.71,230.49,230.44,9.1639]
[1759728197584,3.9031,230.5,230.44,9.1639]
[1759728197786,8.01,230.49,230.44,9.1639]
[1759728198192,11.9131,230.5,230.44,3.9039]
[1759728199591,3.9027,230.52,230.43,4.83071761]
[1759728199895,8.01,230.51,230.44,5.26]
[1759728200594,5.86005803,230.54,230.47,3.9033]
[1759728200793,8.01,230.53,230.47,3.9033]
[1759728201093,11.46696932,230.53,230.47,3.9033]
[1759728202695,15.36946932,230.53,230.47,3.9033]
[1759728202895,11.9125,230.53,230.47,3.9033]
[1759728205194,3.9025,230.53,230.48,3.9032]
[1759728205393,8.01,230.55,230.45,5.26]
[1759728205594,8.01,230.55,230.46,5.26]
[1759728205794,8.01,230.55,230.52,3.9025]
[1759728206193,8.01,230.55,230.52,9.1625]
[1759728206994,8.01,230.56,230.46,4.83071761]
[1759728207291,8.01,230.56,230.47,5.26]
[1759728207597,17.354,231.07,230.51,4.83071761]
[1759728207598,8.01,230.6,230.51,4.83071761]
[1759728207799,8.01,230.6,230.52,5.26]
[1759728208600,3.9009,230.63,230.55,3.902]
[1759728208899,8.01,230.61,230.55,3.902]
[1759728209794,8.01,230.61,230.54,5.26]
[1759728210501,8.01,230.61,230.54,9.1621]
[1759728212109,8.01,230.61,230.54,5.26]
[1759728213609,112.78,230.62,230.56,3.9018]
[1759728216211,7.24,230.62,230.56,9.1618]
[1759728216405,106.77171573,230.64,230.58,9.1615]
[1759728216812,7.24,230.63,230.58,9.1615]
[1759728217016,106.77171573,230.64,230.58,9.1615]
[1759728217807,7.24,230.63,230.58,9.1615]
[1759728218010,106.77171573,230.64,230.58,9.1615]
[1759728218217,7.24,230.63,230.58,9.1615]
[1759728218416,106.77171573,230.64,230.58,9.1615]
[1759728218809,7.24,230.63,230.58,9.1615]
[1759728219119,106.77171573,230.64,230.58,9.1615]
[1759728219319,7.24,230.63,230.58,9.1615]
[1759728219517,106.77171573,230.64,230.58,9.1615]
[1759728220124,114.01171573,230.64,230.58,3.9015]
[1759728227227,114.01171573,230.64,230.57,5.26]
[1759728227715,114.01171573,230.64,230.56,3.9019]
[1759728229625,1.25171573,230.61,230.56,3.9019]
[1759728229927,7.76,230.6,230.56,3.9019]
[1759728230519,7.76,230.6,230.55,3.902]
[1759728230722,1.25171573,230.61,230.55,3.902]
[1759728231621,7.76,230.6,230.54,5.26]
[1759728232626,7.76,230.6,230.57,9.1616]
[1759728233029,7.76,230.6,230.57,5.26]
[1759728234524,7.76,230.6,230.52,5.26]
[1759728235731,7.76,230.61,230.57,3.9016]
[1759728235932,1.25171573,230.62,230.57,3.9016]
[1759728236129,7.76,230.61,230.57,3.9016]
[1759728236931,1.25171573,230.62,230.57,3.9016]
[1759728237331,9.01171573,230.63,230.57,9.1616]
[1759728239230,9.01171573,230.63,230.57,3.9016]
[1759728240229,7.76,230.62,230.58,3.9014]
[1759728240434,7.76,230.62,230.58,9.1614]
[1759728240734,7.76,230.62,230.53,5.26]
[1759728242636,106.71171573,230.63,230.57,3.9016]
[1759728242935,7.76,230.62,230.57,3.9016]
[1759728243131,106.71171573,230.63,230.57,3.9016]
[1759728243330,7.76,230.62,230.57,3.9016]
[1759728243532,106.71171573,230.63,230.57,3.9016]
[1759728243927,7.76,230.62,230.57,3.9016]
[1759728244133,106.71171573,230.63,230.57,3.9016]
[1759728244338,7.76,230.62,230.58,9.1615]
[1759728244533,106.71171573,230.63,230.58,9.1615]
[1759728244734,7.76,230.62,230.58,9.1615]
[1759728244936,7.76,230.62,230.58,5.26]
[1759728245334,7.76,230.65,230.56,5.26]
[1759728245637,7.76,230.65,230.63,9.1606]
[1759728246140,7.76,230.68,230.59,5.26]
[1759728247035,7.76,230.68,230.61,3.901]
[1759728250038,7.76,230.66,230.59,9.1614]
[1759728250234,7.76,230.63,230.59,3.9014]
[1759728250640,1.25171573,230.64,230.59,3.9014]
[1759728250836,7.76,230.63,230.59,3.9014]
[1759728251141,1.25171573,230.64,230.59,3.9014]
[1759728251543,7.76,230.63,230.59,9.1614]
[1759728251944,1.25171573,230.64,230.59,9.1614]
[1759728252340,7.76,230.63,230.59,9.1614]
[1759728252737,1.25171573,230.64,230.59,9.1614]
[1759728252942,7.76,230.63,230.59,9.1614]
[1759728253448,1.25171573,230.64,230.59,9.1614]
[1759728254648,7.76,230.63,230.59,9.1614]
[1759728255144,1.25171573,230.64,230.59,9.1614]
[1759728255337,7.76,230.63,230.59,9.1614]
[1759728255539,7.76,230.66,230.6,9.1612]
[1759728260147,7.76,230.66,230.6,5.26]
[1759728260944,7.76,230.66,230.63,5.25]
[1759728268755,1.25171573,230.69,230.58,60.6908]
[1759728268958,7.85,230.71,230.61,5.25]
[1759728269453,3.44486565,230.73,230.66,3.9001]
[1759728269660,7.85,230.72,230.66,3.9001]
[1759728270857,7.85,230.72,230.65,5.25]
[1759728271353,7.85,230.72,230.65,9.1503]
[1759728272558,11.7493,230.72,230.65,9.1503]
[1759728276062,11.7493,230.72,230.65,5.25]
[1759728278063,3.8995,230.71,230.65,5.25]
[1759728278265,7.71,230.7,230.64,5.24]
[1759728279760,7.71,230.7,230.64,9.1404]
[1759728280762,7.71,230.7,230.64,5.24]
[1759728281065,11.6097,230.7,230.64,5.24]
[1759728282068,7.71,230.7,230.64,5.24]
[1759728283265,7.71,230.7,230.59,5.24]
[1759728284268,7.71,230.67,230.59,5.24]
[1759728285568,7.71,230.67,230.61,3.901]
[1759728286973,7.71,230.67,230.57,4.83071761]
[1759728287161,7.71,230.67,230.58,5.24]
[1759728287363,7.71,230.67,230.59,5.24]
[1759728287970,7.5,230.7,230.59,5.24]
[1759728288270,7.5,230.7,230.64,3.9005]
[1759728288669,3.8991,230.73,230.65,3.9003]
[1759728288870,112.88,230.72,230.65,3.9003]
[1759728292082,112.88,230.72,230.66,9.1401]
[1759728293784,116.7793,230.72,230.66,5.24]
[1759728294980,116.7793,230.72,230.66,9.1402]
[1759728295582,7.5,230.71,230.67,9.14]
[1759728295778,105.38,230.72,230.67,9.14]
[1759728295980,7.5,230.71,230.68,5.24]
[1759728297681,105.38,230.72,230.68,5.24]
[1759728297882,7.5,230.71,230.68,5.24]
[1759728298385,105.38,230.72,230.68,5.24]
[1759728298978,7.5,230.71,230.68,5.24]
[1759728299182,105.38,230.72,230.68,5.24]
[1759728299580,7.5,230.71,230.67,3.9]
[1759728299781,105.38,230.72,230.67,3.9]
[1759728300184,7.5,230.71,230.67,3.9]
[1759728300386,7.5,230.71,230.65,9.1403]
[1759728301392,7.5,230.71,230.66,3.9002]
[1759728301591,7.5,230.71,230.61,4.83071761]
[1759728301894,7.5,230.71,230.62,5.24]
[1759728302987,7.5,230.71,230.64,3.9005]
[1759728303195,7.5,230.71,230.63,5.24]
[1759728305398,7.5,230.71,230.68,9.1398]
[1759728307304,105.34,230.72,230.69,9.1396]
[1759728307793,7.5,230.78,230.72,3.8991]
[1759728307999,116.30354945,230.78,230.72,3.8991]
[1759728308197,7.5,230.76,230.72,3.8991]
[1759728308700,3.46354945,230.77,230.72,3.8991]
[1759728309200,105.34,230.78,230.72,3.8991]
[1759728309402,105.34,230.78,230.7,5.24]
[1759728309403,7.5,230.77,230.7,5.24]
[1759728310603,7.5,230.77,230.71,3.8992]
[1759728311406,105.34,230.78,230.72,3.8991]
[1759728311604,7.5,230.77,230.72,3.8991]
[1759728311797,105.34,230.78,230.72,3.8991]
[1759728312507,7.5,230.77,230.72,3.8991]
[1759728313204,105.34,230.78,230.72,3.8991]
[1759728313504,7.5,230.77,230.72,3.8991]
[1759728313705,105.34,230.78,230.72,3.8991]
[1759728313900,105.34,230.78,230.66,65.49991761]
[1759728313901,105.34,230.78,230.73,3.8989]
[1759728314101,7.5,230.77,230.73,9.1389]
[1759728314500,7.5,230.77,230.74,5.24]
[1759728314806,105.34,230.78,230.74,5.24]
[1759728315006,7.5,230.77,230.74,5.24]
[1759728315507,105.34,230.78,230.74,5.24]
[1759728316099,7.5,230.77,230.74,5.24]
[1759728316407,105.34,230.78,230.73,3.8989]
[1759728317108,7.5,230.77,230.7,3.8994]
[1759728318413,7.5,230.77,230.69,5.24]
[1759728319106,7.5,230.77,230.7,3.8995]
[1759728320711,7.5,230.77,230.71,3.8993]
[1759728322205,7.5,230.77,230.74,5.24]
[1759728322710,105.34,230.78,230.74,5.24]
[1759728323011,7.8,230.77,230.74,5.24]
[1759728324113,105.34,230.78,230.73,9.139]
[1759728324410,7.8,230.77,230.73,9.139]
[1759728324609,105.34,230.78,230.73,3.899]
[1759728324807,7.8,230.77,230.73,3.899]
[1759728325011,105.34,230.78,230.73,3.899]
[1759728325211,7.8,230.77,230.73,9.139]
[1759728325812,105.34,230.78,230.73,9.139]
[1759728326311,7.8,230.77,230.73,9.139]
[1759728326509,105.34,230.78,230.73,9.139]
[1759728326708,7.8,230.77,230.74,5.24]
[1759728327212,105.34,230.78,230.73,9.139]
[1759728327808,7.8,230.77,230.73,9.139]
[1759728328514,7.8,230.77,230.73,3.899]
[1759728328709,11.6976,230.82,230.75,5.24]
[1759728328915,105.28,230.81,230.75,5.24]
[1759728329716,105.28,230.81,230.75,9.1386]
[1759728330215,105.28,230.81,230.76,9.1384]
[1759728330415,7.8,230.8,230.77,5.24]
[1759728331019,105.28,230.81,230.77,5.24]
[1759728331214,105.28,230.81,230.73,3.899]
[1759728331410,113.08,230.81,230.74,5.24]
[1759728332816,113.08,230.81,230.74,9.1388]
[1759728336229,7.61,230.86,230.76,5.25]
[1759728336425,105.26,230.85,230.76,5.25]
[1759728336620,105.26,230.85,230.77,3.8983]
[1759728336621,7.61,230.84,230.77,3.8983]
[1759728336921,7.61,230.84,230.75,5.25]
[1759728337120,7.61,230.84,230.78,3.8981]
[1759728337425,7.61,230.84,230.75,5.25]
[1759728338625,105.26,230.85,230.79,3.8979]
[1759728338829,112.87,230.85,230.79,9.1479]
[1759728340426,112.87,230.85,230.74,1.24941643]
[1759728340427,4.81723335,230.96,230.8,6.49941643]
[1759728340627,7.61,230.95,230.84,5.25]
[1759728340830,7.61,230.95,230.85,1.24941643]
[1759728341031,7.61,230.95,230.86,3.8968]
[1759728341630,7.61,230.95,230.88,3.8965]
[1759728341833,7.61,231.04,230.93,5.25]
[1759728342029,1.24941643,231.0,230.89,5.25]
[1759728342230,7.61,230.99,230.89,5.25]
[1759728342730,7.61,230.99,230.89,9.1462]
[1759728342924,7.61,230.96,230.85,6.49941643]
[1759728343126,7.61,230.96,230.86,3.8968]
[1759728343431,7.61,230.94,230.86,3.8968]
[1759728343629,7.61,230.94,230.86,16.98520184]
[1759728343831,7.61,230.94,230.86,3.8968]
[1759728344229,7.61,230.94,230.83,3.8973]
[1759728344435,7.61,230.91,230.82,1.24941643]
[1759728345133,7.61,230.91,230.82,14.53361684]
[1759728345632,7.61,230.91,230.84,3.8972]
[1759728346529,7.61,230.91,230.86,9.1468]
[1759728346733,7.61,230.91,230.87,5.25]
[1759728347525,1.24941643,230.96,230.87,5.25]
[1759728347725,7.61,230.95,230.87,5.25]
[1759728351043,7.61,230.95,230.88,3.8964]
[1759728352336,1.24941643,230.96,230.9,3.8962]
[1759728352536,7.76,230.98,230.9,5.24]
[1759728352740,7.76,230.98,230.89,5.14561643]
[1759728353040,7.76,230.98,230.89,1.24941643]
[1759728353636,7.76,230.98,230.88,3.8965]
[1759728353637,11.6549,230.98,230.88,3.8965]
[1759728353838,1.24941643,230.97,230.88,3.8965]
[1759728354033,7.76,230.96,230.88,3.8965]
[1759728356645,7.76,230.96,230.9,3.8961]
[1759728362544,7.76,231.03,230.94,5.24]
[1759728362851,7.76,231.0,230.9,5.24]
[1759728363751,7.76,231.0,230.92,3.8958]
[1759728366155,7.76,231.0,230.9,5.24]
[1759728366156,7.76,231.0,230.94,3.8955]
[1759728366654,7.76,231.0,230.96,3.8951]
[1759728366847,8.51355666,231.11,230.98,60.587]
[1759728367152,7.76,231.11,231.03,6.48941643]
[1759728368049,14.2162927,231.21,231.08,60.5585]
[1759728368253,9.00941643,231.24,231.13,1.24941643]
[1759728368755,9.00941643,231.24,231.14,3.8921]
[1759728369156,9.00941643,231.24,231.08,60.5595]
[1759728369157,7.76,231.24,231.16,1.24941643]
[1759728369555,7.76,231.24,231.16,5.14121643]
[1759728369954,7.76,231.24,231.16,1.24941643]
[1759728370154,7.76,231.24,231.15,9.1319]
[1759728370450,56.28,231.28,231.1,60.5543]
[1759728370451,7.76,231.22,231.12,1.24941643]
[1759728370850,7.76,231.22,231.1,5.24]
[1759728371149,60.515,231.26,231.1,5.24]
[1759728371150,7.76,231.18,231.1,5.24]
[1759728376261,7.76,231.18,231.09,3.8929]
[1759728376663,9.00941643,231.18,231.09,3.8929]
[1759728378160,7.76,231.18,231.09,3.8929]
[1759728378357,1.24941643,231.17,231.09,3.8929]
[1759728380462,7.67,231.2,231.12,5.23]
[1759728380659,7.67,231.2,231.1,1.24941643]
[1759728380961,7.67,231.17,231.08,5.23]
[1759728381564,7.67,231.17,231.08,9.123]
[1759728382865,7.67,231.17,231.08,10.37241643]
[1759728384762,7.67,231.17,231.08,6.47941643]
[1759728385073,7.67,231.17,231.11,5.23]
[1759728385966,7.67,231.17,231.12,3.8924]
[1759728386166,7.67,231.17,231.13,5.23]
[1759728386564,1.24941643,231.2,231.13,5.23]
[1759728386864,7.67,231.19,231.13,5.23]
[1759728387467,7.67,231.19,231.12,3.8924]
[1759728387664,7.67,231.19,231.13,3.8922]
[1759728387963,7.67,231.19,231.11,5.23]
[1759728388365,7.67,231.19,231.12,3.8923]
[1759728388763,7.67,231.19,231.11,5.23]
[1759728388764,7.67,231.23,231.16,3.8917]
[1759728388967,7.67,231.23,231.16,5.23]
[1759728390460,7.67,231.23,231.17,3.8915]
[1759728391568,7.67,231.23,231.16,5.23]
[1759728394170,7.67,231.23,231.17,3.8915]
[1759728396968,3.8904,231.25,231.17,3.8915]
[1759728397169,3.89,231.27,231.18,5.23]
[1759728397375,7.48,231.26,231.18,5.23]
[1759728398178,5.7300487,231.28,231.18,5.23]
[1759728398371,7.48,231.31,231.18,62.47842247]
[1759728398675,7.48,231.31,231.19,5.23]
[1759728399467,7.48,231.31,231.23,3.8905]
[1759728399672,7.48,231.31,231.19,5.23]
[1759728400770,3.8896,231.3,231.21,3.8908]
[1759728401479,3.8896,231.3,231.22,3.8907]
[1759728402178,7.48,231.29,231.22,3.8907]
[1759728402679,7.48,231.29,231.22,9.1207]
[1759728402978,7.48,231.29,231.23,3.8905]
[1759728404280,7.48,231.31,231.24,3.8903]
[1759728406176,60.5025,231.31,231.12,5.23]
[1759728406375,166.7579,231.33,231.12,5.23]
[1759728406376,7.48,231.24,231.12,5.23]
[1759728408380,7.54,231.2,231.13,3.8922]
[1759728409474,7.54,231.2,231.15,3.892]
[1759728409680,7.54,231.2,231.16,5.23]
[1759728410883,7.54,231.21,231.15,3.892]
[1759728414175,7.54,231.21,231.16,3.8916]
[1759728414381,7.54,231.21,231.16,9.1216]
[1759728414883,7.54,231.21,231.16,3.8916]
[1759728415076,7.54,231.21,231.17,5.23]
[1759728415277,1.94512247,231.22,231.16,3.8916]
[1759728415278,9.48512247,231.22,231.16,3.8916]
[1759728415686,9.48512247,231.22,231.14,3.8921]
[1759728415979,7.54,231.22,231.13,5.23]
[1759728417680,7.54,231.22,231.15,3.8918]
[1759728420890,7.54,231.22,231.16,3.8917]
[1759728421088,7.54,231.22,231.15,5.23]
[1759728421489,7.54,231.22,231.17,3.8916]
[1759728421684,7.54,231.22,231.18,5.23]
[1759728421889,7.54,231.22,231.17,3.8916]
[1759728422295,7.54,231.22,231.18,5.23]
[1759728422693,7.54,231.31,231.15,5.23]
[1759728422896,7.54,231.31,231.2,5.23]
[1759728423096,7.54,231.31,231.22,65.7541]
[1759728423290,7.54,231.31,231.28,3.8897]
[1759728423794,7.54,231.31,231.28,9.1197]
[1759728423993,7.54,231.36,231.29,3.8895]
[1759728424197,7.54,231.36,231.28,5.23]
[1759728424392,1.94512247,231.44,231.28,5.23]
[1759728424599,7.54,231.42,231.29,5.23]
[1759728426395,7.54,231.39,231.29,5.23]
[1759728427689,7.54,231.39,231.3,3.8893]
[1759728428999,7.54,231.39,231.32,9.1191]
[1759728432199,7.54,231.39,231.29,9.1195]
[1759728433106,7.54,231.39,231.31,3.8893]
[1759728433602,7.54,231.43,231.32,5.23]
[1759728433802,7.54,231.47,231.38,9.1181]
[1759728434105,7.54,231.47,231.38,5.23]
[1759728435008,7.54,231.47,231.38,9.1181]
[1759728436301,7.54,231.45,231.34,9.1187]
[1759728436508,7.54,231.43,231.34,9.1187]
[1759728436707,7.54,231.43,231.34,5.23]
[1759728439106,7.54,231.43,231.35,3.8885]
[1759728439306,7.54,231.43,231.35,13.11511627]
[1759728439510,7.54,231.43,231.34,5.23]
[1759728440613,7.54,231.43,231.36,3.8883]
[1759728441010,3.8868,231.46,231.37,5.22]
[1759728441217,7.54,231.47,231.38,3.8881]
[1759728442115,7.54,231.47,231.39,3.8878]
[1759728442417,7.54,231.47,231.37,5.22]
[1759728442809,7.54,231.47,231.37,9.1082]
[1759728443512,7.54,231.47,231.38,3.888]
[1759728445811,11.4267,231.47,231.38,3.888]
[1759728447616,5.83222247,231.44,231.35,12.67669072]
[1759728447810,7.54,231.43,231.32,5.22]
[1759728448714,7.54,231.41,231.27,5.22]
[1759728448910,7.54,231.39,231.27,5.22]
[1759728449115,3.8882,231.38,231.28,3.8897]
[1759728449328,7.54,231.37,231.28,3.8897]
[1759728450718,11.4284,231.37,231.28,3.8897]
[1759728451216,1.24376309,231.35,231.28,3.8897]
[1759728453721,7.6,231.34,231.27,5.22]
[1759728453919,1.24376309,231.29,231.23,3.8905]
[1759728454525,7.6,231.28,231.22,17.89768185]
[1759728454823,7.6,231.28,231.2,3.891]
[1759728456119,7.6,231.28,231.2,9.111]
[1759728457122,1.24376309,231.29,231.22,9.1107]
[1759728459026,7.6,231.28,231.22,5.22]
[1759728462233,1.24376309,231.29,231.25,5.22]
[1759728462831,8.84376309,231.29,231.25,5.22]
[1759728463432,7.6,231.28,231.22,3.8908]
[1759728464938,1.24376309,231.26,231.21,5.22]
[1759728465139,7.6,231.25,231.21,5.22]
[1759728465741,1.24376309,231.26,231.22,5.22]
[1759728465941,8.84376309,231.26,231.22,5.22]
[1759728466541,7.6,231.26,231.22,5.22]
[1759728467436,7.6,231.3,231.21,5.22]
[1759728467640,8.84376309,231.3,231.21,5.22]
[1759728467839,8.84376309,231.3,231.24,3.8903]
[1759728470843,8.84376309,231.3,231.22,3.8908]
[1759728471245,7.63,231.26,231.23,5.22]
[1759728471450,8.87376309,231.27,231.23,5.22]
[1759728471651,7.63,231.26,231.22,3.8908]
[1759728471851,7.63,231.26,231.22,9.1108]
[1759728472054,7.63,231.27,231.22,3.8908]
[1759728472352,7.63,231.24,231.17,10.05071761]
[1759728472547,7.63,231.24,231.17,5.22]
[1759728473052,60.4941,231.34,231.23,5.22]
[1759728473053,1.24376309,231.34,231.23,5.22]
[1759728473249,1.24376309,231.34,231.23,6.46376309]
[1759728473551,7.63,231.33,231.23,6.46376309]
[1759728474145,1.24376309,231.28,231.23,5.22]
[1759728474345,8.87376309,231.28,231.23,5.22]
[1759728474541,7.63,231.27,231.23,5.22]
[1759728474744,7.63,231.27,231.19,5.22]
[1759728476548,7.63,231.27,231.23,3.8905]
[1759728476750,1.24376309,231.28,231.23,3.8905]
[1759728476947,7.63,231.27,231.23,3.8905]
[1759728477142,1.24376309,231.28,231.23,3.8905]
[1759728477342,8.87376309,231.28,231.23,3.8905]
[1759728477547,8.87376309,231.28,231.24,9.1103]
[1759728477747,8.87376309,231.32,231.21,5.22]
[1759728478452,7.63,231.32,231.22,5.22]
[1759728479155,7.63,231.32,231.28,3.8896]
[1759728480554,8.87376309,231.37,231.26,1.24376309]
[1759728480753,8.87376309,231.37,231.27,5.22]
[1759728481556,8.87376309,231.37,231.31,3.8891]
[1759728482656,8.87376309,231.37,231.28,3.8896]
[1759728482956,7.63,231.33,231.23,5.22]
[1759728484560,7.63,231.33,231.24,6.46376309]
[1759728486062,7.63,231.33,231.29,3.8895]
[1759728486259,7.63,231.37,231.27,6.46376309]
[1759728487554,7.63,231.37,231.3,3.8893]
[1759728487759,8.87376309,231.37,231.3,3.8893]
[1759728490266,1.24376309,231.37,231.33,3.8889]
[1759728490473,7.63,231.36,231.33,3.8889]
[1759728491073,1.24376309,231.37,231.33,3.8889]
[1759728491268,7.63,231.36,231.33,3.8889]
[1759728492373,1.24376309,231.37,231.33,3.8889]
[1759728492872,7.63,231.36,231.31,3.8893]
[1759728493072,1.24376309,231.37,231.31,3.8893]
[1759728493274,8.87376309,231.37,231.31,3.8893]
[1759728493473,7.63,231.33,231.29,3.8896]
[1759728494667,7.63,231.36,231.29,3.8896]
[1759728494973,7.63,231.36,231.27,4.83071761]
[1759728494974,7.63,231.33,231.27,3.8899]
[1759728496676,7.63,231.3,231.23,4.83071761]
[1759728496876,7.63,231.3,231.23,10.05071761]
[1759728497678,8.70376309,231.31,231.25,3.8903]
[1759728499681,7.46,231.31,231.25,3.8903]
[1759728499877,7.46,231.29,231.24,9.1204]
[1759728500571,1.24376309,231.33,231.25,3.8901]
[1759728500775,7.46,231.32,231.25,3.8901]
[1759728501686,8.70376309,231.33,231.27,3.8899]
[1759728503081,25.54,231.37,231.24,5.23]
[1759728503082,7.46,231.29,231.24,5.23]
[1759728503379,7.46,231.29,231.23,10.06071761]
[1759728503577,8.70376309,231.33,231.23,10.06071761]
[1759728503779,8.70376309,231.33,231.24,6.47376309]
[1759728504284,8.70376309,231.33,231.24,11.3044807]
[1759728504584,8.70376309,231.33,231.26,3.89]
[1759728504784,8.70376309,231.33,231.24,11.3044807]
[1759728504785,8.70376309,231.33,231.25,5.23]
[1759728504978,8.70376309,231.33,231.26,5.23]
[1759728505684,8.70376309,231.33,231.29,5.23]
[1759728506279,7.46,231.33,231.3,5.23]
[1759728506484,7.46,231.36,231.3,5.23]
[1759728508282,8.70376309,231.36,231.3,5.23]
[1759728510088,8.70376309,231.36,231.29,3.8895]
[1759728513194,7.46,231.36,231.29,3.8895]
[1759728516088,7.46,231.36,231.26,4.83071761]
[1759728516296,1.94338211,231.4,231.32,5.22]
[1759728516491,7.58,231.39,231.32,5.22]
[1759728516793,7.58,231.39,231.29,3.8896]
[1759728517990,11.468,231.39,231.3,3.8893]
[1759728518292,7.58,231.39,231.3,3.8893]
[1759728519490,3.8882,231.38,231.3,3.8893]
[1759728519692,7.58,231.37,231.31,3.8892]
[1759728519895,7.58,231.37,231.28,5.22]
[1759728521097,7.58,231.39,231.32,3.889]
[1759728523097,3.8881,231.38,231.32,3.889]
[1759728523301,7.58,231.37,231.3,3.8894]
[1759728523802,7.58,231.37,231.31,3.8892]
[1759728524501,7.58,231.37,231.28,10.05071761]
[1759728524502,3.8885,231.36,231.28,4.83071761]
[1759728524797,7.58,231.35,231.26,10.05071761]
[1759728525204,7.58,231.35,231.27,4.83071761]
[1759728525503,7.58,231.35,231.28,3.8897]
[1759728525905,7.58,231.35,231.29,3.8895]
[1759728526098,7.58,231.35,231.29,9.1095]
[1759728531910,7.58,231.35,231.29,5.22]
[1759728532712,7.8,231.39,231.29,5.22]
[1759728533011,7.8,231.39,231.3,5.22]
[1759728533412,7.8,231.39,231.3,10.05071761]
[1759728533601,101.4138761,231.41,231.34,3.8887]
[1759728533803,7.8,231.4,231.33,5.22]
[1759728534813,5.6538761,231.41,231.36,3.8883]
[1759728535010,13.4538761,231.41,231.37,5.22]
[1759728535206,7.8,231.4,231.37,5.22]
[1759728537107,7.8,231.44,231.38,3.8881]
[1759728537614,7.8,231.44,231.37,5.22]
[1759728538405,7.8,231.44,231.38,3.8881]
[1759728542814,7.8,231.46,231.39,3.8878]
[1759728543014,7.8,231.46,231.36,5.22]
[1759728543714,7.8,231.46,231.39,3.8879]
[1759728544117,7.8,231.46,231.36,3.8883]
[1759728544316,7.8,231.44,231.36,3.8883]